bitfinex/quotes_BTCUSD_20251114
["timestamp","ask_amount","ask_price","bid_price","bid_amount"]
[1763099706574,4.565e-05,97617.0,97616.0,0.67194368]
[1763099708379,4.565e-05,97617.0,97616.0,0.1006426]
[1763099708585,4.565e-05,97617.0,97602.0,0.323]
[1763099708802,4.565e-05,97617.0,97580.0,0.020248]
[1763099708803,0.02513,97603.0,97580.0,0.020248]
[1763099709008,0.20490895,97605.0,97602.0,0.1006426]
[1763099709628,0.05086,97616.0,97602.0,0.1006426]
[1763099710043,4.565e-05,97617.0,97602.0,0.1006426]
[1763099710257,4.565e-05,97617.0,97603.0,0.20491173]
[1763099710463,0.20489319,97612.0,97603.0,0.20491173]
[1763099710670,0.20489319,97612.0,97602.0,0.1006426]
[1763099710671,4.565e-05,97617.0,97612.0,0.20489255]
[1763099710882,4.565e-05,97617.0,97614.0,0.20488707]
[1763099713598,4.565e-05,97617.0,97616.0,0.20488444]
[1763099713805,4.565e-05,97617.0,97616.0,0.36641874]
[1763099714014,0.20489549,97611.0,97580.0,0.010248]
[1763099714220,0.03293,97616.0,97590.0,0.20493737]
[1763099714425,0.02513,97610.0,97580.0,0.030248]
[1763099714630,0.20490676,97606.0,97590.0,0.20493736]
[1763099714802,0.20490676,97606.0,97596.0,0.20492569]
[1763099715007,0.2049009,97609.0,97596.0,0.20492569]
[1763099715388,0.20490565,97606.0,97596.0,0.20492569]
[1763099715578,0.20491043,97604.0,97594.0,0.20493003]
[1763099715782,0.20491043,97604.0,97592.0,0.20493419]
[1763099716355,4.565e-05,97617.0,97590.0,0.01024695]
[1763099716585,4.565e-05,97617.0,97605.0,0.20490729]
[1763099716739,0.20488654,97615.0,97605.0,0.20490729]
[1763099716943,0.20488654,97615.0,97607.0,0.20490235]
[1763099717149,4.565e-05,97617.0,97591.0,0.20493584]
[1763099717352,4.565e-05,97617.0,97600.0,0.20491173]
[1763099717515,4.565e-05,97617.0,97615.0,0.20488518]
[1763099718335,4.565e-05,97617.0,97615.0,0.20488613]
[1763099718540,0.20489359,97612.0,97591.0,0.04341874]
[1763099718742,0.20489359,97612.0,97601.0,0.20491539]
[1763099719144,0.20488444,97616.0,97591.0,0.04341874]
[1763099719323,0.20488654,97615.0,97598.0,0.20492021]
[1763099719476,4.565e-05,97617.0,97608.0,0.20490115]
[1763099719688,4.565e-05,97617.0,97602.0,0.30555433]
[1763099719895,4.565e-05,97617.0,97616.0,0.20488444]
[1763099722926,4.565e-05,97617.0,97596.0,0.30738811]
[1763099723128,0.20488695,97615.0,97602.0,0.30555618]
[1763099723354,4.565e-05,97617.0,97611.0,0.20489313]
[1763099723582,4.565e-05,97617.0,97614.0,0.20488803]
[1763099723784,0.20492824,97617.0,97607.0,0.20490145]
[1763099723982,4.565e-05,97617.0,97608.0,0.20490009]
[1763099724188,4.565e-05,97617.0,97610.0,0.20489538]
[1763099724593,0.20492992,97617.0,97610.0,0.20489671]
[1763099725011,4.565e-05,97617.0,97610.0,0.20489671]
[1763099725197,4.565e-05,97617.0,97608.0,0.20490009]
[1763099725343,0.20492946,97617.0,97602.0,0.1006426]
[1763099725546,4.565e-05,97617.0,97602.0,0.1006426]
[1763099725791,0.2049094,97605.0,97603.0,0.1006426]
[1763099726755,0.20489881,97610.0,97603.0,0.1006426]
[1763099726965,0.20488654,97615.0,97603.0,0.1006426]
[1763099727162,0.2048981,97610.0,97603.0,0.1006426]
[1763099727366,0.20490963,97604.0,97603.0,0.1006426]
[1763099727592,0.05806,97604.0,97580.0,0.010248]
[1763099727768,0.204933,97593.0,97591.0,0.1006426]
[1763099728463,0.03293,97592.0,97591.0,0.1006426]
[1763099728668,0.20493693,97591.0,97582.0,0.2049556]
[1763099728864,0.03293,97592.0,97579.0,0.1006426]
[1763099729079,0.20496623,97578.0,97566.0,0.30563098]
[1763099729490,0.20497113,97575.0,97566.0,0.30563098]
[1763099729691,0.20496633,97577.0,97568.0,0.20498468]
[1763099730134,0.2049905,97566.0,97540.0,0.0102522]
[1763099730309,0.20498521,97569.0,97560.0,0.20500135]
[1763099730515,0.20501503,97554.0,97551.0,0.00012864]
[1763099730732,0.03123,97552.0,97551.0,0.00012864]
[1763099731542,0.20501503,97554.0,97551.0,0.00012864]
[1763099732153,0.20501474,97556.0,97551.0,0.00012864]
[1763099732333,0.02324,97567.0,97552.0,0.1006426]
[1763099732571,0.2050158,97554.0,97552.0,0.1006426]
[1763099732772,0.20501886,97552.0,97551.0,0.00012864]
[1763099733134,0.20501592,97557.0,97551.0,0.00012864]
[1763099733135,0.20500923,97557.0,97551.0,0.00012864]
[1763099733331,0.20501355,97555.0,97551.0,0.00012864]
[1763099733841,0.20500544,97559.0,97551.0,0.00012864]
[1763099734056,0.20500895,97557.0,97551.0,0.00012864]
[1763099734296,0.20501396,97555.0,97551.0,0.00012864]
[1763099735239,0.20501396,97555.0,97552.0,0.1006426]
[1763099735453,0.20500895,97557.0,97552.0,0.1006426]
[1763099736093,0.04978,97561.0,97553.0,0.20501676]
[1763099736299,0.04978,97561.0,97555.0,0.20501123]
[1763099736426,0.04978,97561.0,97552.0,0.1006426]
[1763099736625,0.20500205,97560.0,97552.0,0.1006426]
[1763099737038,0.2050162,97554.0,97551.0,0.00012864]
[1763099737657,0.03123,97552.0,97551.0,0.00012864]
[1763099739333,0.2050162,97554.0,97551.0,0.00012864]
[1763099740296,0.23624886,97552.0,97551.0,0.00012864]
[1763099740501,0.20499613,97563.0,97551.0,0.00012864]
[1763099740675,0.20500186,97561.0,97552.0,0.1006426]
[1763099740913,0.2050044,97559.0,97552.0,0.30566086]
[1763099741181,0.20500186,97561.0,97552.0,0.30566086]
[1763099741480,0.20500186,97561.0,97553.0,0.20501469]
[1763099741686,0.20500186,97561.0,97554.0,0.20501257]
[1763099742065,0.04978,97569.0,97552.0,0.30566086]
[1763099742269,0.323,97572.0,97552.0,0.30566086]
[1763099742270,0.20499574,97563.0,97552.0,0.20501826]
[1763099742480,0.20500575,97559.0,97552.0,0.20501826]
[1763099742697,0.323,97572.0,97551.0,0.00012864]
[1763099742698,0.20501521,97554.0,97551.0,0.00012864]
[1763099743085,0.23624886,97552.0,97551.0,0.00012864]
[1763099743454,0.90988886,97552.0,97551.0,0.00012864]
[1763099743659,0.23624886,97552.0,97551.0,0.00012864]
[1763099743863,0.35627886,97552.0,97551.0,0.00012864]
[1763099744785,0.23624886,97552.0,97551.0,0.00012864]
[1763099745005,0.20501879,97553.0,97551.0,0.00012864]
[1763099745225,0.23624886,97552.0,97551.0,0.00012864]
[1763099746134,0.03123,97552.0,97551.0,0.00012864]
[1763099746624,0.323,97556.0,97551.0,0.00012864]
[1763099746625,0.20501708,97553.0,97551.0,0.00012864]
[1763099747064,0.20500631,97558.0,97551.0,0.00012864]
[1763099747269,0.04978,97560.0,97551.0,0.00012864]
[1763099747476,0.20501726,97553.0,97551.0,0.00012864]
[1763099748332,0.20501786,97553.0,97551.0,0.00012864]
[1763099748762,0.20501352,97555.0,97551.0,0.00012864]
[1763099748979,0.20499738,97563.0,97551.0,0.00012864]
[1763099749159,0.20499378,97564.0,97556.0,0.20500938]
[1763099749357,0.20499378,97564.0,97558.0,0.20500585]
[1763099749592,0.20499378,97564.0,97556.0,0.20500938]
[1763099749751,0.02324,97567.0,97552.0,0.20501886]
[1763099749752,0.20500734,97558.0,97552.0,0.20501886]
[1763099749961,0.20501757,97553.0,97551.0,0.00012864]
[1763099751684,0.03123,97552.0,97551.0,0.00012864]
[1763099752501,0.20501757,97553.0,97551.0,0.00012864]
[1763099752906,0.03123,97552.0,97520.0,0.0102543]
[1763099753105,0.0102501,97560.0,97520.0,0.0102543]
[1763099753106,0.20506411,97531.0,97530.0,0.1006426]
[1763099753359,0.03123,97547.0,97530.0,0.1006426]
[1763099753360,0.2050486,97538.0,97530.0,0.1006426]
[1763099753581,0.20505444,97536.0,97530.0,0.30570654]
[1763099753787,0.20505444,97536.0,97530.0,0.1006426]
[1763099754410,0.20504839,97538.0,97530.0,0.30570589]
[1763099755238,0.20504839,97538.0,97531.0,0.20506098]
[1763099755600,0.20505234,97537.0,97531.0,0.20506098]
[1763099755809,0.20504877,97538.0,97530.0,0.1006426]
[1763099755991,2.95014508,97600.0,97530.0,0.1006426]
[1763099755992,0.02324,97539.0,97530.0,0.30570616]
[1763099756192,0.20502962,97547.0,97530.0,0.1006426]
[1763099756412,0.01905529,97546.0,97541.0,0.20504185]
[1763099756619,0.01905529,97545.0,97535.0,0.20505249]
[1763099757011,0.20505459,97535.0,97520.0,0.03039132]
[1763099757394,0.04978,97545.0,97534.0,0.1006426]
[1763099757511,0.01909518,97544.0,97534.0,0.1006426]
[1763099757717,0.02324,97552.0,97534.0,0.1006426]
[1763099757718,0.01909518,97543.0,97540.0,0.20504212]
[1763099757920,0.01909518,97542.0,97540.0,0.20504212]
[1763099758176,0.01909403,97541.0,97535.0,0.2050534]
[1763099758333,0.01910982,97540.0,97538.0,0.20504828]
[1763099758534,0.01910982,97539.0,97538.0,0.20504828]
[1763099758739,0.01910982,97539.0,97536.0,0.20505067]
[1763099758941,0.01910982,97538.0,97536.0,0.20505067]
[1763099759182,0.20503147,97546.0,97536.0,0.20505067]
[1763099759341,0.04111022,97545.0,97536.0,0.20505067]
[1763099759680,0.0191043,97544.0,97538.0,0.20504704]
[1763099759913,0.20504198,97541.0,97534.0,0.1006426]
[1763099760042,0.20504671,97539.0,97534.0,0.1006426]
[1763099760228,0.20505039,97537.0,97534.0,0.1006426]
[1763099760430,0.0191043,97536.0,97534.0,0.1006426]
[1763099760654,0.0191043,97535.0,97534.0,0.1006426]
[1763099763996,0.20506509,97531.0,97530.0,0.1006426]
[1763099764205,0.22416939,97531.0,97530.0,0.1006426]
[1763099764440,0.25630939,97531.0,97530.0,0.1006426]
[1763099765477,0.25630939,97531.0,97520.0,0.00013702]
[1763099765647,0.20507722,97525.0,97520.0,0.00013702]
[1763099765848,0.0191043,97524.0,97521.0,0.20508403]
[1763099766095,0.0191043,97523.0,97521.0,0.20508403]
[1763099766271,0.0191043,97522.0,97521.0,0.20508403]
[1763099766606,0.20506365,97531.0,97525.0,0.20507543]
[1763099766811,0.04121511,97530.0,97525.0,0.20507543]
[1763099767035,0.01915589,97529.0,97527.0,0.20507058]
[1763099767234,0.01915589,97528.0,97527.0,0.20507058]
[1763099767860,0.01915589,97528.0,97520.0,0.00013702]
[1763099768035,0.01915589,97527.0,97525.0,0.2050752]
[1763099768253,0.01915589,97526.0,97525.0,0.2050752]
[1763099768716,0.04844589,97526.0,97520.0,0.00013702]
[1763099768859,0.25727403,97521.0,97520.0,0.00013702]
[1763099769055,0.09340546,97521.0,97520.0,0.00013702]
[1763099769695,0.04121546,97521.0,97520.0,0.00013702]
[1763099769977,0.01915589,97521.0,97520.0,0.00013702]
[1763099770164,0.01915589,97521.0,97520.0,0.02013702]
[1763099771393,0.02205957,97537.0,97520.0,0.02013702]
[1763099771394,0.0229,97538.0,97528.0,0.20506895]
[1763099771606,0.01914809,97537.0,97533.0,0.30569941]
[1763099771779,0.01914809,97536.0,97533.0,0.30569941]
[1763099771957,0.01914809,97535.0,97533.0,0.30569941]
[1763099772162,0.01914809,97534.0,97533.0,0.30569941]
[1763099772366,0.01914809,97534.0,97533.0,0.1006426]
[1763099773208,0.22420478,97534.0,97533.0,0.1006426]
[1763099773388,0.24626435,97534.0,97533.0,0.1006426]
[1763099773588,0.27555435,97534.0,97533.0,0.1006426]
[1763099773795,0.07049766,97534.0,97520.0,0.00013702]
[1763099773993,0.20506302,97531.0,97530.0,0.1006426]
[1763099774189,0.22421111,97531.0,97530.0,0.1006426]
[1763099774373,0.20508403,97521.0,97520.0,0.00013702]
[1763099774571,0.22798199,97522.0,97520.0,0.00013702]
[1763099774775,0.0229,97522.0,97520.0,0.00013702]
[1763099774971,0.2279821,97522.0,97520.0,0.00013702]
[1763099775192,0.04399,97544.0,97520.0,0.00013702]
[1763099775449,0.20505586,97535.0,97520.0,0.00013702]
[1763099775647,0.2050588,97533.0,97526.0,0.20507144]
[1763099775907,0.01916069,97532.0,97526.0,0.20507144]
[1763099776110,0.01916069,97532.0,97530.0,0.1006426]
[1763099776365,0.01916069,97531.0,97530.0,0.1006426]
[1763099776568,0.01916069,97531.0,97530.0,0.3057077]
[1763099776767,0.02207537,97534.0,97530.0,0.3057077]
[1763099776768,0.01916069,97533.0,97530.0,0.3057077]
[1763099776969,0.02207537,97542.0,97530.0,0.1006426]
[1763099777168,0.01916336,97541.0,97530.0,0.1006426]
[1763099777368,0.205063,97531.0,97530.0,0.1006426]
[1763099777677,0.01916336,97531.0,97530.0,0.1006426]
[1763099777880,0.02207744,97536.0,97532.0,0.20506021]
[1763099778085,0.01916181,97535.0,97532.0,0.20506021]
[1763099778238,0.02207744,97540.0,97534.0,0.20505522]
[1763099778429,0.22421122,97539.0,97534.0,0.20505522]
[1763099778635,0.20506262,97532.0,97530.0,0.1006426]
[1763099779755,0.20505669,97534.0,97530.0,0.1006426]
[1763099780593,0.20505421,97536.0,97530.0,0.1006426]
[1763099780850,0.20506139,97532.0,97530.0,0.1006426]
[1763099781414,0.20505855,97534.0,97530.0,0.1006426]
[1763099781757,0.20506183,97532.0,97530.0,0.1006426]
[1763099781959,0.20505855,97534.0,97521.0,0.1457]
[1763099781960,0.05219,97531.0,97521.0,0.1457]
[1763099782229,0.0229,97521.0,97520.0,0.00043502]
[1763099782405,0.25727403,97521.0,97520.0,0.00043502]
[1763099783362,0.64390787,97521.0,97520.0,0.00043502]
[1763099784140,0.64390787,97521.0,97510.0,0.0004]
[1763099784141,0.20510506,97511.0,97510.0,0.0004]
[1763099784315,2.23439506,97511.0,97510.0,0.00044565]
[1763099784808,2.28513648,97511.0,97510.0,0.00044565]
[1763099785008,0.20512399,97502.0,97500.0,0.0004]
[1763099785223,2.14425941,97502.0,97501.0,0.12013705]
[1763099785436,2.13469248,97502.0,97501.0,0.12013705]
[1763099785638,2.16219357,97502.0,97501.0,0.12013705]
[1763099786371,2.13469248,97502.0,97501.0,0.12013705]
[1763099786954,2.45769248,97502.0,97501.0,0.12013705]
[1763099788344,2.50111122,97502.0,97501.0,0.11265973]
[1763099788569,2.50111122,97502.0,97447.0,0.1006426]
[1763099788570,0.52814714,97491.0,97447.0,0.1006426]
[1763099788746,0.20521483,97459.0,97450.0,0.20523285]
[1763099788960,0.20521483,97459.0,97452.0,0.20522847]
[1763099789180,0.0229,97458.0,97452.0,0.20522847]
[1763099789399,0.0229,97458.0,97448.0,0.20523766]
[1763099789746,0.20521871,97457.0,97448.0,0.20523766]
[1763099789957,0.0229,97458.0,97450.0,0.20523285]
[1763099790176,0.05219,97449.0,97447.0,0.00045718]
[1763099790391,0.03114,97448.0,97447.0,0.00045718]
[1763099791935,0.0229,97449.0,97447.0,0.00045718]
[1763099792680,0.0229,97449.0,97448.0,0.20523766]
[1763099792877,0.0229,97449.0,97447.0,0.00045718]
[1763099793143,0.0229,97449.0,97447.0,0.20569632]
[1763099793286,0.03114,97448.0,97447.0,0.00045718]
[1763099793898,0.20523211,97451.0,97447.0,0.00045718]
[1763099794113,0.02319,97448.0,97447.0,0.00045718]
[1763099794702,0.25956766,97448.0,97447.0,0.00045718]
[1763099798933,1.07071766,97448.0,97447.0,0.00045718]
[1763099799075,1.05889366,97448.0,97447.0,0.00045718]
[1763099799484,0.44781566,97448.0,97447.0,0.00045718]
[1763099801681,0.77081566,97448.0,97447.0,0.00045718]
[1763099802212,0.58256766,97448.0,97447.0,0.00045718]
[1763099802417,0.37733,97448.0,97447.0,0.00045718]
[1763099802857,0.58256766,97448.0,97447.0,0.00045718]
[1763099803063,0.04311,97463.0,97447.0,0.00045718]
[1763099803260,0.20523582,97449.0,97447.0,0.00045718]
[1763099803639,0.03114,97448.0,97447.0,0.00045718]
[1763099805465,0.20522994,97452.0,97447.0,0.00045718]
[1763099805666,0.0229,97458.0,97450.0,0.1006426]
[1763099805866,0.20522081,97456.0,97447.0,0.00045718]
[1763099806067,0.20523766,97448.0,97447.0,0.00045718]
[1763099806272,0.20522713,97453.0,97447.0,0.00045718]
[1763099806487,0.20523118,97452.0,97447.0,0.00045718]
[1763099806713,0.20523346,97450.0,97447.0,0.00045718]
[1763099807323,0.0229,97458.0,97447.0,0.00045718]
[1763099807504,0.0229,97458.0,97452.0,0.20522733]
[1763099807702,0.20522327,97455.0,97451.0,0.1006426]
[1763099808489,0.0229,97458.0,97451.0,0.30587267]
[1763099809002,0.0229,97458.0,97451.0,0.1006426]
[1763099809207,0.01901141,97457.0,97451.0,0.1006426]
[1763099809417,0.0229,97458.0,97451.0,0.1006426]
[1763099809620,0.0229,97458.0,97453.0,0.20522522]
[1763099809816,0.0229,97458.0,97452.0,0.20522924]
[1763099810223,0.0190306,97457.0,97452.0,0.20522924]
[1763099810455,0.02750109,97488.0,97451.0,0.1006426]
[1763099810681,0.01903509,97481.0,97472.0,0.2051853]
[1763099810872,0.01903509,97480.0,97478.0,0.20517403]
[1763099811032,0.02319,97487.0,97480.0,0.20517029]
[1763099811230,0.02319,97487.0,97484.0,0.20516072]
[1763099811428,0.0219355,97490.0,97488.0,0.20515315]
[1763099811636,0.01905746,97489.0,97481.0,0.1006426]
[1763099811842,0.2051581,97486.0,97482.0,0.1006426]
[1763099812044,0.01905746,97485.0,97482.0,0.10109978]
[1763099812264,0.01905746,97484.0,97482.0,0.30626565]
[1763099812467,0.01905746,97483.0,97482.0,0.30626565]
[1763099812863,0.02198342,97491.0,97482.0,0.30626565]
[1763099813044,0.02198342,97491.0,97482.0,0.10109978]
[1763099813259,0.20514825,97491.0,97485.0,0.20515969]
[1763099813457,0.02198342,97490.0,97485.0,0.20515969]
[1763099813659,0.02198342,97490.0,97483.0,0.20516397]
[1763099813886,0.22713469,97490.0,97483.0,0.20516397]
[1763099814104,0.03114,97484.0,97482.0,0.00045718]
[1763099814271,0.20516396,97484.0,97482.0,0.00045718]
[1763099814475,0.03114,97483.0,97482.0,0.00045718]
[1763099815329,0.05433,97483.0,97482.0,0.00045718]
[1763099815531,0.20513136,97499.0,97483.0,0.20516397]
[1763099815832,0.52200896,97498.0,97492.0,0.20514464]
[1763099816032,0.02200896,97497.0,97492.0,0.20514464]
[1763099816175,0.02200896,97498.0,97492.0,0.20514464]
[1763099816379,0.02200896,97502.0,97492.0,0.20514464]
[1763099816574,0.20512001,97504.0,97492.0,0.20514464]
[1763099816575,0.00954951,97500.0,97497.0,0.2051336]
[1763099816784,0.22713299,97502.0,97493.0,0.20514221]
[1763099817001,0.02319,97499.0,97493.0,0.20514221]
[1763099817215,0.04519896,97499.0,97495.0,0.20513814]
[1763099817418,0.02319,97499.0,97497.0,0.20513399]
[1763099818059,0.02319,97499.0,97497.0,0.20513357]
[1763099819102,0.02319,97499.0,97493.0,0.20514221]
[1763099819348,0.02319,97499.0,97497.0,0.20513363]
[1763099819682,0.02319,97499.0,97495.0,0.20513668]
[1763099819904,0.02319,97499.0,97496.0,0.20513456]
[1763099820533,0.02222,97508.0,97499.0,0.2051303]
[1763099820733,0.02222,97508.0,97505.0,0.20511562]
[1763099821785,0.02222,97508.0,97503.0,0.20511983]
[1763099822642,0.02222,97508.0,97504.0,0.1006426]
[1763099822960,0.02195383,97509.0,97504.0,0.1006426]
[1763099823163,0.20511331,97508.0,97504.0,0.1006426]
[1763099823373,0.02222,97512.0,97504.0,0.2463426]
[1763099823583,0.02222,97521.0,97504.0,0.2463426]
[1763099823796,0.111468,97519.0,97511.0,0.20510387]
[1763099824014,0.02194671,97518.0,97513.0,0.20509955]
[1763099824219,0.603497,97517.0,97513.0,0.20509955]
[1763099824496,0.20508193,97524.0,97504.0,0.1006426]
[1763099824497,0.52222,97528.0,97504.0,0.1006426]
[1763099824699,0.20508562,97521.0,97512.0,0.2051011]
[1763099824899,0.01904072,97520.0,97516.0,0.20509444]
[1763099825249,0.20507562,97525.0,97519.0,0.1006426]
[1763099825475,0.0190284,97524.0,97519.0,0.30573031]
[1763099825699,0.0190284,97523.0,97521.0,0.20508396]
[1763099825909,0.52319,97526.0,97519.0,0.30573031]
[1763099826123,0.224104,97525.0,97519.0,0.30573031]
[1763099826343,0.20507562,97525.0,97519.0,0.30573031]
[1763099827012,0.04972109,97547.0,97519.0,0.1006426]
[1763099827267,0.113196,97544.0,97520.0,0.02]
[1763099827439,0.20509071,97518.0,97516.0,4.564e-05]
[1763099827773,0.02144,97520.0,97516.0,4.564e-05]
[1763099827993,0.02144,97520.0,97519.0,0.1006426]
[1763099828218,0.20507312,97527.0,97519.0,0.1006426]
[1763099828414,0.02750109,97549.0,97521.0,0.20508211]
[1763099828415,0.20506757,97529.0,97521.0,0.20508211]
[1763099828794,0.205063,97531.0,97523.0,0.20507849]
[1763099829118,0.57867147,97550.0,97519.0,0.1006426]
[1763099829119,0.04251,97545.0,97519.0,0.1006426]
[1763099829296,0.01901001,97538.0,97533.0,0.20505875]
[1763099829511,0.21530048,97540.0,97533.0,0.20505875]
[1763099829719,0.0190102,97538.0,97534.0,0.20505645]
[1763099829956,0.5,97541.0,97536.0,0.20505224]
[1763099830147,0.20503224,97546.0,97538.0,0.20504733]
[1763099830367,0.01900743,97545.0,97543.0,0.20503744]
[1763099830602,0.20502422,97550.0,97543.0,0.20503744]
[1763099830770,0.0226125,97551.0,97549.0,0.20502488]
[1763099830972,0.01901313,97550.0,97546.0,0.20503064]
[1763099831172,0.0226125,97551.0,97535.0,0.1006426]
[1763099831379,0.01901328,97550.0,97538.0,0.20504828]
[1763099831556,0.01901328,97550.0,97544.0,0.20503367]
[1763099831756,0.20502743,97548.0,97535.0,0.1006426]
[1763099831964,0.20502743,97548.0,97541.0,0.20504186]
[1763099832417,0.20502371,97550.0,97543.0,0.20503771]
[1763099832545,0.0440525,97551.0,97535.0,0.10068824]
[1763099832546,0.20503663,97544.0,97535.0,0.10068824]
[1763099832744,0.20503663,97544.0,97536.0,0.20505249]
[1763099833137,0.0440525,97551.0,97535.0,0.10068824]
[1763099833332,0.24907346,97551.0,97550.0,0.1006426]
[1763099833636,0.0440525,97551.0,97550.0,0.1006426]
[1763099833860,0.24907346,97551.0,97550.0,0.1006426]
[1763099834063,0.0727125,97551.0,97535.0,0.10068824]
[1763099834262,0.0727125,97551.0,97535.0,4.564e-05]
[1763099834263,0.25515249,97536.0,97535.0,4.564e-05]
[1763099838301,0.22649249,97536.0,97535.0,4.564e-05]
[1763099838509,0.20504408,97542.0,97535.0,4.564e-05]
[1763099838510,0.20505226,97537.0,97535.0,4.564e-05]
[1763099838719,0.20504626,97539.0,97535.0,4.564e-05]
[1763099838933,0.20504191,97542.0,97535.0,4.564e-05]
[1763099839338,0.20504452,97540.0,97535.0,4.564e-05]
[1763099840057,0.0440525,97551.0,97537.0,0.20504843]
[1763099840271,0.01906233,97550.0,97538.0,0.20504626]
[1763099840485,0.01906233,97549.0,97538.0,0.20504626]
[1763099840723,0.0440525,97551.0,97538.0,0.20504626]
[1763099840724,0.01906233,97548.0,97538.0,0.20504626]
[1763099841026,0.20503342,97546.0,97539.0,0.20504434]
[1763099841177,0.20504021,97542.0,97540.0,0.0239469]
[1763099841358,0.01906233,97541.0,97540.0,0.0239469]
[1763099842166,0.01906233,97542.0,97540.0,0.0239469]
[1763099842372,0.01906233,97541.0,97540.0,0.0239469]
[1763099842688,0.22409981,97544.0,97539.0,0.30568855]
[1763099842884,0.01906233,97543.0,97539.0,0.30568855]
[1763099843431,0.20503235,97546.0,97539.0,0.30568855]
[1763099843432,0.01906233,97542.0,97539.0,0.30568855]
[1763099843631,0.20503235,97546.0,97539.0,0.30568855]
[1763099843632,0.01906233,97541.0,97539.0,0.30568855]
[1763099843768,0.20503235,97546.0,97540.0,0.07568519]
[1763099843948,0.01909007,97545.0,97541.0,0.20504198]
[1763099844209,0.01909007,97544.0,97543.0,0.20503777]
[1763099846659,0.01909007,97544.0,97540.0,0.07568519]
[1763099846981,0.01909007,97543.0,97542.0,0.20503988]
[1763099847196,0.20502337,97550.0,97542.0,0.20503988]
[1763099847197,0.04109086,97549.0,97542.0,0.20503988]
[1763099847325,0.01909007,97548.0,97539.0,0.3056886]
[1763099847673,0.01909007,97547.0,97545.0,0.20503326]
[1763099847830,0.01909007,97546.0,97545.0,0.20503326]
[1763099848038,0.01910151,97549.0,97546.0,0.20502961]
[1763099848264,0.01910833,97548.0,97546.0,0.20502961]
[1763099848449,0.06605329,97551.0,97546.0,0.20502961]
[1763099848450,0.01910833,97547.0,97546.0,0.20502961]
[1763099848914,0.01910833,97547.0,97545.0,0.07157619]
[1763099849114,0.01910833,97547.0,97539.0,0.1006426]
[1763099849115,0.20503357,97545.0,97539.0,0.1006426]
[1763099849345,0.01910833,97544.0,97540.0,0.2050421]
[1763099849550,0.01910833,97543.0,97541.0,0.2050402]
[1763099849753,0.20502955,97547.0,97541.0,0.2050402]
[1763099849754,0.01910833,97542.0,97541.0,0.2050402]
[1763099849957,0.01910833,97542.0,97541.0,0.2602198]
[1763099851068,0.02993,97536.0,97492.0,0.1006426]
[1763099851291,0.20508942,97519.0,97500.0,0.01]
[1763099851513,0.20510879,97510.0,97500.0,0.00045718]
[1763099851726,0.0209,97518.0,97501.0,0.02282021]
[1763099851998,0.20511838,97505.0,97500.0,0.00045718]
[1763099852168,0.04263,97517.0,97500.0,0.00045718]
[1763099852379,0.01911886,97516.0,97510.0,0.205106]
[1763099852581,0.0209,97534.0,97525.0,0.20507419]
[1763099852736,0.04263,97547.0,97520.0,0.2050845]
[1763099852737,0.01912068,97533.0,97520.0,0.2050845]
[1763099852942,0.01912068,97532.0,97530.0,0.1006426]
[1763099853130,0.01912068,97531.0,97530.0,0.1006426]
[1763099853973,0.01912068,97531.0,97521.0,0.02050845]
[1763099854173,0.20507719,97525.0,97521.0,0.0001371]
[1763099854373,0.01912068,97524.0,97521.0,0.0001371]
[1763099854599,0.01912068,97523.0,97521.0,0.0001371]
[1763099854763,0.01912068,97522.0,97521.0,0.0001371]
[1763099854964,0.01912068,97522.0,97521.0,0.02066053]
[1763099855810,0.01912068,97522.0,97521.0,0.22574456]
[1763099856584,0.01912068,97522.0,97521.0,0.22874456]
[1763099857342,0.02208002,97535.0,97522.0,0.20508193]
[1763099857500,0.02208002,97535.0,97534.0,0.1006426]
[1763099857701,0.05084043,97535.0,97534.0,0.1006426]
[1763099858235,0.05084043,97535.0,97534.0,0.11070686]
[1763099858426,0.02876041,97535.0,97534.0,0.11070686]
[1763099859738,0.02876041,97535.0,97534.0,0.11370686]
[1763099860111,0.01917361,97535.0,97534.0,0.31876355]
[1763099861962,0.01917361,97535.0,97534.0,0.31576355]
[1763099862145,0.02750109,97547.0,97546.0,0.20503147]
[1763099862356,0.02875786,97547.0,97546.0,0.26654193]
[1763099862750,0.02875786,97547.0,97546.0,0.06151046]
[1763099863382,0.04125839,97547.0,97546.0,0.002]
[1763099864212,0.02208648,97547.0,97546.0,0.002]
[1763099864390,0.20502804,97548.0,97546.0,0.002]
[1763099865411,0.20502804,97548.0,97534.0,0.11070686]
[1763099865412,0.20504894,97538.0,97534.0,0.11070686]
[1763099865613,0.05083,97547.0,97534.0,0.11070686]
[1763099865614,0.20505039,97537.0,97535.0,0.01107069]
[1763099866823,0.20505039,97537.0,97534.0,0.1026426]
[1763099867063,0.20505039,97537.0,97534.0,0.1006426]
[1763099867220,0.20505191,97539.0,97534.0,0.1006426]
[1763099867221,0.20505459,97535.0,97534.0,0.1006426]
[1763099868037,0.0209,97536.0,97519.0,0.323]
[1763099868235,0.20507322,97527.0,97524.0,0.1006426]
[1763099868480,0.20507544,97526.0,97524.0,0.1006426]
[1763099868640,0.20507562,97525.0,97524.0,0.1006426]
[1763099869296,0.20507322,97527.0,97524.0,0.1006426]
[1763099869654,0.24766777,97544.0,97524.0,0.1006426]
[1763099869853,0.20506347,97531.0,97526.0,0.20507351]
[1763099870944,0.20506347,97531.0,97525.0,0.05055703]
[1763099870945,0.20505132,97537.0,97529.0,0.20506687]
[1763099871744,0.20506095,97532.0,97527.0,0.20507141]
[1763099872038,0.20506095,97532.0,97525.0,0.05055703]
[1763099872270,0.2050713,97528.0,97525.0,0.05055703]
[1763099872419,0.20507141,97527.0,97526.0,0.05021211]
[1763099873623,0.20506095,97532.0,97526.0,0.05021211]
[1763099873822,0.20506083,97533.0,97526.0,0.25528539]
[1763099874220,0.0209,97538.0,97527.0,0.20506977]
[1763099874632,0.20505664,97535.0,97527.0,0.20506977]
[1763099874865,0.2050638,97531.0,97528.0,0.09119201]
[1763099875068,0.20506933,97528.0,97526.0,0.05321211]
[1763099875267,0.20507399,97526.0,97524.0,0.1006426]
[1763099875667,0.02993,97525.0,97524.0,0.1006426]
[1763099875872,0.20507399,97526.0,97524.0,0.1006426]
[1763099876075,0.22595018,97538.0,97524.0,0.1006426]
[1763099876326,0.0209,97538.0,97528.0,0.20506924]
[1763099876470,0.20503599,97544.0,97530.0,0.20506388]
[1763099876674,0.112999,97546.0,97527.0,0.20506958]
[1763099876895,0.20504989,97538.0,97531.0,0.20506118]
[1763099877298,0.20503949,97543.0,97531.0,0.20506118]
[1763099877508,0.20504792,97539.0,97531.0,0.20506118]
[1763099877683,0.20504792,97539.0,97532.0,0.01391076]
[1763099878490,0.20504792,97539.0,97533.0,0.2050588]
[1763099878687,0.20504792,97539.0,97534.0,0.20505507]
[1763099878894,0.20504792,97539.0,97532.0,0.01391076]
[1763099878895,0.0209,97547.0,97538.0,0.20504766]
[1763099879071,0.20503147,97546.0,97541.0,0.1006426]
[1763099880123,0.0209,97547.0,97541.0,0.1006426]
[1763099880326,0.5,97557.0,97541.0,0.1006426]
[1763099880532,0.52206117,97556.0,97545.0,0.20503159]